fUSD/lending_fUSD_20241106
["ID","MTS","AMOUNT","RATE_DAILY","PERIOD"]
[341492390,1730922641910,-2159.33,0.00027397,2]
[341492391,1730922641919,-500.0,0.00027397,2]
[341492392,1730922641929,-1683.35,0.00027397,2]
[341492393,1730922641939,-493.59074999,0.00027397,2]
[341492394,1730922642023,-6.40925001,0.00027397,2]
[341492395,1730922642032,-352.24074987,0.00027397,2]
[341492396,1730922642044,-184.34925013,0.00027397,2]
[341492397,1730922642053,-500.0,0.00027397,2]
[341492398,1730922642063,-312.98823949,0.00027397,2]
[341492399,1730922642117,-196.51188201,0.00027397,2]
[341492400,1730922642127,-500.0,0.00027397,2]
[341492401,1730922642137,-500.0,0.00027397,2]
[341492402,1730922642146,-1052.72,0.00027397,2]
[341492403,1730922642155,-500.0,0.00027397,2]
[341492404,1730922642164,-500.0,0.00027397,2]
[341492405,1730922642173,-528.62873951,0.00027397,2]
[341492406,1730922642183,-500.0,0.00027397,2]
[341492407,1730922642194,-500.0,0.00027397,2]
[341492408,1730922642204,-531.11980612,0.00027397,2]
[341492409,1730922642213,-500.0,0.00027397,2]
[341492410,1730922642222,-500.0,0.00027397,2]
[341492411,1730922642232,-500.0,0.00027397,2]
[341492412,1730922642241,-500.0,0.00027397,2]
[341492413,1730922642251,-500.0,0.00027397,2]
[341492414,1730922642260,-1358.49,0.00027397,2]
[341492415,1730922642270,-500.0,0.00027397,2]
[341492416,1730922642279,-1719.08,0.00027397,2]
[341492417,1730922642288,-500.0,0.00027397,2]
[341492418,1730922642298,-500.0,0.00027397,2]
[341492419,1730922642307,-500.0,0.00027397,2]
[341492420,1730922642316,-500.0,0.00027397,2]
[341492421,1730922642325,-500.0,0.00027397,2]
[341492422,1730922642334,-500.0,0.00027397,2]
[341492423,1730922642344,-500.0,0.00027397,2]
[341492424,1730922642353,-500.0,0.00027397,2]
[341492425,1730922642362,-500.0,0.00027397,2]
[341492426,1730922642372,-500.0,0.00027397,2]
[341492427,1730922642381,-500.0,0.00027397,2]
[341492428,1730922642393,-1081.12,0.00027397,2]
[341492429,1730922642402,-554.88,0.00027397,2]
[341492430,1730922642411,-608.63,0.00027397,2]
[341492431,1730922642421,-536.42880359,0.00027397,2]
[341492432,1730922642430,-500.0,0.00027397,2]
[341492433,1730922642441,-500.0,0.00027397,2]
[341492434,1730922642450,-500.0,0.00027397,2]
[341492435,1730922642460,-500.0,0.00027397,2]
[341492436,1730922642469,-522.84448126,0.00027397,2]
[341492437,1730922642480,-500.0,0.00027397,2]
[341492438,1730922642489,-536.52720662,0.00027397,2]
[341492439,1730922642499,-655.47,0.00027397,2]
[341492440,1730922642509,-500.0,0.00027397,2]
[341492441,1730922642519,-500.0,0.00027397,2]
[341492444,1730922642801,-576.36,0.00027397,2]
[341492445,1730922642813,-500.0,0.00027397,2]
[341492446,1730922642823,-641.95,0.00027397,2]
[341492447,1730922642832,-500.0,0.00027397,2]
[341492449,1730922642842,-500.0,0.00027397,2]
[341492451,1730922642852,-500.0,0.00027397,2]
[341492453,1730922642861,-500.0,0.00027397,2]
[341492456,1730922642871,-502.28754549,0.00027397,2]
[341492458,1730922642880,-500.0,0.00027397,2]
[341492459,1730922642889,-500.0,0.00027397,2]
[341492460,1730922642899,-500.92416815,0.00027397,2]
[341492461,1730922642908,-978.4,0.00027397,2]
[341492462,1730922642918,-2127.75,0.00027397,2]
[341492463,1730922642927,-500.0,0.00027397,2]
[341492464,1730922642937,-500.0,0.00027397,2]
[341492465,1730922642948,-565.93,0.00027397,2]
[341492466,1730922642958,-500.0,0.00027397,2]
[341492467,1730922642967,-1670.33,0.00027397,2]
[341492468,1730922642977,-500.0,0.00027397,2]
[341492469,1730922642987,-500.0,0.00027397,2]
[341492470,1730922642997,-500.0,0.00027397,2]
[341492471,1730922643007,-512.25339663,0.00027397,2]
[341492472,1730922643016,-500.0,0.00027397,2]
[341492473,1730922643026,-665.68,0.00027397,2]
[341492474,1730922643035,-500.0,0.00027397,2]
[341492475,1730922643045,-500.0,0.00027397,2]
[341492476,1730922643054,-500.0,0.00027397,2]
[341492477,1730922643065,-500.0,0.00027397,2]
[341492478,1730922643074,-500.0,0.00027397,2]
[341492479,1730922643084,-500.0,0.00027397,2]
[341492480,1730922643093,-500.0,0.00027397,2]
[341492481,1730922643103,-500.0,0.00027397,2]
[341492482,1730922643113,-500.0,0.00027397,2]
[341492483,1730922643123,-1219.79,0.00027397,2]
[341492484,1730922643132,-500.0,0.00027397,2]
[341492485,1730922643143,-500.0,0.00027397,2]
[341492486,1730922643152,-500.0,0.00027397,2]
[341492487,1730922643161,-500.0,0.00027397,2]
[341492488,1730922643171,-500.0,0.00027397,2]
[341492490,1730922643181,-500.0,0.00027397,2]
[341492491,1730922643191,-500.0,0.00027397,2]
[341492492,1730922643200,-630.64215182,0.00027397,2]
[341492493,1730922643209,-500.0,0.00027397,2]
[341492494,1730922643219,-1209.34,0.00027397,2]
[341492495,1730922643229,-1277.02,0.00027397,2]
[341492496,1730922643238,-500.0,0.00027397,2]
[341492497,1730922643247,-500.0,0.00027397,2]
[341492498,1730922643257,-500.0,0.00027397,2]
[341492499,1730922643267,-538.64,0.00027397,2]
[341492500,1730922643276,-500.0,0.00027397,2]
[341492501,1730922643285,-500.0,0.00027397,2]
[341492502,1730922643295,-416.42138561,0.00027397,2]
[341492503,1730922643305,-1000.12,0.00027397,2]
[341492504,1730922643314,-500.0,0.00027397,2]
[341492505,1730922643323,-500.0,0.00027397,2]
[341492506,1730922643333,-500.0,0.00027397,2]
[341492507,1730922643342,-500.0,0.00027397,2]
[341492508,1730922643351,-1000.0,0.00027397,10]
[341492509,1730922643360,-500.0,0.00027397,2]
[341492510,1730922643370,-802.32,0.00027397,2]
[341492511,1730922643379,-1976.19,0.00027397,2]
[341492512,1730922643392,-63.06961016,0.00027397,2]
[341492513,1730922643406,-436.93038984,0.00027397,2]
[341492514,1730922643415,-500.0,0.00027397,2]
[341492515,1730922643424,-500.0,0.00027397,2]
[341492516,1730922643433,-390.72857033,0.00027397,2]
[341492519,1730922644335,-109.27142967,0.00027397,2]
[341492520,1730922644346,-500.0,0.00027397,2]
[341492521,1730922644356,-500.0,0.00027397,2]
[341492522,1730922644366,-7.92599635,0.00027397,2]
[341492523,1730922645116,-1551.59999714,0.00027,2]
[341492524,1730922645125,-561.53400365,0.00027397,2]
[341492525,1730922645135,-500.0,0.00027397,2]
[341492526,1730922645144,-500.0,0.00027397,2]
[341492527,1730922645154,-500.0,0.00027397,2]
[341492528,1730922645163,-500.0,0.00027397,2]
[341492529,1730922645172,-150.0,0.00027397,2]
[341492530,1730922645181,-500.0,0.00027397,2]
[341492531,1730922645191,-894.15,0.00027397,2]
[341492532,1730922645202,-137.04761196,0.00027397,2]
[341492533,1730922645214,-305.28549365,0.00027397,2]
[341492534,1730922645223,-281.40993653,0.00027397,2]
[341492535,1730922645234,-200.0,0.00027397,7]
[341492536,1730922645243,-312.8,0.00027397,10]
[341492537,1730922645253,-546.09,0.00027397,10]
[341492538,1730922645262,-467.8,0.00027543,30]
[341492539,1730922645272,-2889.63883065,0.00027571,2]
[341492540,1730922645282,-442.39089251,0.00027661,2]
[341492541,1730922645292,-1000.0,0.0002767,30]
[341492542,1730922645301,-500.0,0.00027671,2]
[341492543,1730922645311,-500.0,0.00027671,2]
[341492544,1730922645321,-535.97821156,0.00027671,2]
[341492545,1730922645331,-500.0,0.00027671,2]
[341492546,1730922645341,-500.0,0.00027671,2]
[341492547,1730922645351,-537.9764806,0.00027671,2]
[341492548,1730922645361,-500.0,0.00027671,2]
[341492549,1730922645371,-500.0,0.00027671,2]
[341492550,1730922645381,-500.0,0.00027671,2]
[341492551,1730922645394,-500.0,0.00027671,2]
[341492552,1730922645404,-500.0,0.00027671,2]
[341492553,1730922645414,-500.0,0.00027671,2]
[341492554,1730922645425,-500.0,0.00027671,2]
[341492555,1730922645435,-500.0,0.00027671,2]
[341492556,1730922645445,-500.0,0.00027671,2]
[341492557,1730922645455,-500.0,0.00027671,2]
[341492558,1730922645465,-305.7823918,0.00027671,2]
[341492559,1730922645475,-282.35300521,0.00027671,2]
[341492560,1730922645623,-217.64699479,0.00027671,2]
[341492562,1730922645633,-74.38900521,0.00027671,2]
[341492564,1730922645645,-121.73068769,0.00027671,2]
[341492566,1730922645655,-500.0,0.00027671,2]
[341492568,1730922645665,-300.0,0.00027671,2]
[341492569,1730922645676,-500.0,0.00027671,2]
[341492570,1730922645686,-152.73671557,0.00027671,2]
[341492571,1730922645698,-155.85684796,0.00027671,2]
[341492572,1730922645712,-344.14315204,0.00027671,2]
[341492573,1730922645722,-500.0,0.00027671,2]
[341492574,1730922645732,-500.0,0.00027671,2]
[341492575,1730922645743,-500.0,0.00027671,2]
[341492576,1730922645753,-497.2540763,0.00027671,2]
[341492578,1730922645764,-747.29,0.00027671,2]
[341492580,1730922645774,-500.0,0.00027671,2]
[341492582,1730922645784,-500.0,0.00027671,2]
[341492583,1730922645794,-500.0,0.00027671,2]
[341492584,1730922645805,-500.0,0.00027671,2]
[341492585,1730922645815,-504.05216709,0.00027671,2]
[341492586,1730922645825,-338.93516456,0.00027671,2]
[341492667,1730922647073,-161.06483544,0.00027671,2]
[341492669,1730922647083,-500.0,0.00027671,2]
[341492671,1730922647092,-500.0,0.00027671,2]
[341492673,1730922647102,-500.0,0.00027671,2]
[341492675,1730922647111,-500.0,0.00027671,2]
[341492677,1730922647120,-524.69,0.00027671,2]
[341492678,1730922647132,-500.0,0.00027671,2]
[341492679,1730922647142,-500.0,0.00027671,2]
[341492681,1730922647151,-500.0,0.00027671,2]
[341492683,1730922647160,-500.0,0.00027671,2]
[341492685,1730922647170,-500.0,0.00027671,2]
[341492687,1730922647180,-406.65542976,0.00027671,2]
[341492699,1730922647282,-93.34457024,0.00027671,2]
[341492701,1730922647292,-1051.01,0.00027671,2]
[341492702,1730922647301,-500.0,0.00027671,2]
[341492704,1730922647311,-506.84970715,0.00027671,2]
[341492706,1730922647319,-500.0,0.00027671,2]
[341492708,1730922647329,-500.0,0.00027671,2]
[341492710,1730922647339,-851.78,0.00027671,2]
[341492712,1730922647348,-515.85256431,0.00027671,2]
[341492714,1730922647358,-500.0,0.00027671,2]
[341492716,1730922647367,-500.0,0.00027671,2]
[341492718,1730922647377,-517.38031108,0.00027671,2]
[341492720,1730922647386,-500.0,0.00027671,2]
[341492722,1730922647397,-500.0,0.00027671,2]
[341492724,1730922647406,-572.0,0.00027671,2]
[341492725,1730922647415,-500.0,0.00027671,2]
[341492726,1730922647426,-212.21639487,0.00027671,2]
[341492727,1730922647435,-503.55553792,0.00027671,2]
[341492728,1730922647447,-500.0,0.00027671,2]
[341492729,1730922647457,-500.0,0.00027671,2]
[341492730,1730922647467,-500.0,0.00027671,2]
[341492731,1730922647476,-500.0,0.00027671,2]
[341492732,1730922647485,-500.0,0.00027671,2]
[341492733,1730922647495,-426.04624816,0.00027671,2]
[341492734,1730922647504,-500.0,0.00027671,2]
[341492735,1730922647514,-500.0,0.00027671,2]
[341492736,1730922647525,-659.87,0.00027671,2]
[341492737,1730922647534,-500.0,0.00027671,2]
[341492738,1730922647544,-490.82345306,0.00027671,2]
[341492739,1730922647553,-167.32730297,0.00027671,2]
[341492740,1730922647562,-500.0,0.00027671,2]
[341492741,1730922647572,-500.0,0.00027671,2]
[341492742,1730922647582,-500.0,0.00027671,2]
[341492743,1730922647592,-500.0,0.00027671,2]
[341492744,1730922647601,-1047.2,0.00027671,2]
[341492745,1730922647611,-500.0,0.00027671,2]
[341492746,1730922647621,-500.0,0.00027671,2]
[341492747,1730922647630,-500.0,0.00027671,2]
[341492748,1730922647640,-500.0,0.00027671,2]
[341492749,1730922647649,-500.0,0.00027671,2]
[341492750,1730922647659,-933.13,0.00027671,2]
[341492751,1730922647668,-500.0,0.00027671,2]
[341492752,1730922647678,-502.97,0.00027671,2]
[341492753,1730922647687,-500.0,0.00027671,2]
[341492754,1730922647697,-500.0,0.00027671,2]
[341492755,1730922647706,-500.0,0.00027671,2]
[341492756,1730922647716,-500.0,0.00027671,2]
[341492757,1730922647725,-500.0,0.00027671,2]
[341492758,1730922647736,-500.0,0.00027671,2]
[341492759,1730922647745,-663.55,0.00027671,2]
[341492760,1730922647754,-500.0,0.00027671,2]
[341492761,1730922647764,-500.0,0.00027671,2]
[341492762,1730922647773,-277.89238434,0.00027671,2]
[341492763,1730922647783,-500.0,0.00027671,2]
[341492764,1730922647792,-500.0,0.00027671,2]
[341492765,1730922647804,-536.5438504,0.00027671,2]
[341492766,1730922647813,-500.0,0.00027671,2]
[341492767,1730922647823,-500.0,0.00027671,2]
[341492768,1730922647833,-718.46,0.00027671,2]
[341492769,1730922647842,-500.0,0.00027671,2]
[341492770,1730922647851,-511.71107437,0.00027671,2]
[341492771,1730922647861,-549.51,0.00027671,2]
[341492772,1730922647870,-500.0,0.00027671,2]
[341492773,1730922647879,-500.0,0.00027671,2]
[341492774,1730922647888,-500.0,0.00027671,2]
[341492775,1730922647898,-500.0,0.00027671,2]
[341492776,1730922647907,-500.0,0.00027671,2]
[341492777,1730922648093,-500.0,0.00027671,2]
[341492778,1730922648106,-500.0,0.00027671,2]
[341492779,1730922648116,-620.75,0.00027671,2]
[341492780,1730922648126,-500.0,0.00027671,2]
[341492781,1730922648135,-500.0,0.00027671,2]
[341492782,1730922648145,-500.0,0.00027671,2]
[341492783,1730922648154,-721.78,0.00027671,2]
[341492784,1730922648164,-500.0,0.00027671,2]
[341492785,1730922648173,-500.0,0.00027671,2]
[341492786,1730922648183,-578.58,0.00027671,2]
[341492787,1730922648193,-1169.27,0.00027671,2]
[341492788,1730922648206,-500.0,0.00027671,2]
[341492789,1730922648216,-500.0,0.00027671,2]
[341492790,1730922648225,-500.0,0.00027671,2]
[341492791,1730922648235,-626.9,0.00027671,2]
[341492792,1730922648245,-500.0,0.00027671,2]
[341492793,1730922648255,-252.57045617,0.00027671,2]
[341492794,1730922648264,-500.0,0.00027671,2]
[341492795,1730922648273,-500.0,0.00027671,2]
[341492796,1730922648283,-500.0,0.00027671,2]
[341492797,1730922648293,-500.0,0.00027671,2]
[341492798,1730922648302,-500.0,0.00027671,2]
[341492799,1730922648311,-500.0,0.00027671,2]
[341492800,1730922648321,-528.97,0.00027671,2]
[341492801,1730922648330,-500.0,0.00027671,2]
[341492802,1730922648339,-500.0,0.00027671,2]
[341492803,1730922648349,-588.31,0.00027671,2]
[341492804,1730922648359,-500.0,0.00027671,2]
[341492805,1730922648368,-992.82,0.00027671,2]
[341492806,1730922648378,-500.0,0.00027671,2]
[341492807,1730922648389,-500.0,0.00027671,2]
[341492808,1730922648399,-500.0,0.00027671,2]
[341492809,1730922648408,-261.64998013,0.00027671,2]
[341492810,1730922648417,-500.0,0.00027671,2]
[341492811,1730922648426,-949.12,0.00027671,2]
[341492812,1730922648436,-500.0,0.00027671,2]
[341492813,1730922648447,-500.0,0.00027671,2]
[341492814,1730922648456,-500.0,0.00027671,2]
[341492815,1730922648467,-500.0,0.00027671,2]
[341492816,1730922648477,-500.0,0.00027671,2]
[341492817,1730922648486,-500.0,0.00027671,2]
[341492818,1730922648496,-500.0,0.00027671,2]
[341492819,1730922648506,-500.0,0.00027671,2]
[341492820,1730922648515,-628.45,0.00027671,2]
[341492821,1730922648525,-892.79,0.00027671,2]
[341492822,1730922648535,-500.0,0.00027671,2]
[341492823,1730922648544,-500.0,0.00027671,2]
[341492824,1730922648554,-500.0,0.00027671,2]
[341492825,1730922648564,-574.4,0.00027671,2]
[341492826,1730922648573,-500.0,0.00027671,2]
[341492827,1730922648583,-500.0,0.00027671,2]
[341492828,1730922648592,-500.0,0.00027671,2]
[341492829,1730922648602,-500.0,0.00027671,2]
[341492830,1730922648611,-500.0,0.00027671,2]
[341492831,1730922648620,-641.4,0.00027671,2]
[341492832,1730922648630,-500.0,0.00027671,2]
[341492833,1730922648640,-1259.56,0.00027671,2]
[341492834,1730922648649,-500.0,0.00027671,2]
[341492835,1730922648659,-500.0,0.00027671,2]
[341492836,1730922648669,-500.0,0.00027671,2]
[341492837,1730922648678,-154.39502606,0.00027671,2]
[341492838,1730922648687,-500.0,0.00027671,2]
[341492839,1730922648699,-301.95660554,0.00027671,2]
[341492840,1730922648708,-500.0,0.00027671,2]
[341492841,1730922648718,-500.0,0.00027671,2]
[341492842,1730922648727,-500.0,0.00027671,2]
[341492843,1730922648737,-500.0,0.00027671,2]
[341492844,1730922648747,-500.0,0.00027671,2]
[341492845,1730922648756,-941.09,0.00027671,2]
[341492846,1730922648766,-500.0,0.00027671,2]
[341492847,1730922648775,-500.0,0.00027671,2]
[341492848,1730922648785,-859.1,0.00027671,2]
[341492849,1730922648794,-500.0,0.00027671,2]
[341492850,1730922648804,-500.0,0.00027671,2]
[341492851,1730922648813,-500.0,0.00027671,2]
[341492852,1730922648823,-500.0,0.00027671,2]
[341492853,1730922648832,-500.0,0.00027671,2]
[341492854,1730922648841,-500.0,0.00027671,2]
[341492855,1730922648851,-495.21178105,0.00027671,2]
[341492856,1730922648860,-1523.21,0.00027671,2]
[341492857,1730922648870,-616.69,0.00027671,2]
[341492858,1730922648879,-500.0,0.00027671,2]
[341492859,1730922648888,-536.1,0.00027671,2]
[341492860,1730922648897,-530.09,0.00027671,2]
[341492861,1730922648907,-600.83118269,0.00027671,2]
[341492862,1730922648917,-500.0,0.00027671,2]
[341492863,1730922648926,-500.0,0.00027671,2]
[341492864,1730922648936,-791.56,0.00027671,2]
[341492865,1730922648946,-1724.32,0.00027671,2]
[341492866,1730922648957,-500.0,0.00027671,2]
[341492867,1730922648966,-1306.48,0.00027671,2]
[341492868,1730922648976,-500.0,0.00027671,2]
[341492869,1730922648986,-500.0,0.00027671,2]
[341492870,1730922648996,-989.59,0.00027671,2]
[341492871,1730922649006,-500.0,0.00027671,2]
[341492872,1730922649016,-532.78233626,0.00027671,2]
[341492873,1730922649026,-500.0,0.00027671,2]
[341492874,1730922649035,-500.0,0.00027671,2]
[341492875,1730922649045,-508.25,0.00027671,2]
[341492876,1730922649055,-500.0,0.00027671,2]
[341492877,1730922649064,-2159.33,0.00027671,2]
[341492878,1730922649074,-1683.35,0.00027671,2]
[341492879,1730922649083,-536.59,0.00027671,2]
[341492880,1730922649093,-500.0,0.00027671,2]
[341492881,1730922649103,-500.0,0.00027671,2]
[341492882,1730922649113,-1052.72,0.00027671,2]
[341492883,1730922649123,-500.0,0.00027671,2]
[341492884,1730922649133,-500.0,0.00027671,2]
[341492885,1730922649143,-500.0,0.00027671,2]
[341492886,1730922649153,-500.0,0.00027671,2]
[341492887,1730922649162,-504.28,0.00027671,2]
[341492888,1730922649172,-500.0,0.00027671,2]
[341492889,1730922649182,-500.0,0.00027671,2]
[341492890,1730922649191,-500.0,0.00027671,2]
[341492891,1730922649202,-500.0,0.00027671,2]
[341492892,1730922649211,-1358.49,0.00027671,2]
[341492893,1730922649221,-500.0,0.00027671,2]
[341492894,1730922649231,-1719.08,0.00027671,2]
[341492895,1730922649240,-500.0,0.00027671,2]
[341492896,1730922649250,-500.0,0.00027671,2]
[341492897,1730922649259,-232.84965254,0.00027671,2]
[341492898,1730922649269,-500.0,0.00027671,2]
[341492899,1730922649279,-500.0,0.00027671,2]
[341492900,1730922649288,-500.0,0.00027671,2]
[341492901,1730922649297,-553.9501095,0.00027671,2]
[341492902,1730922649306,-1081.12,0.00027671,2]
[341492903,1730922649316,-554.88,0.00027671,2]
[341492904,1730922649326,-608.63,0.00027671,2]
[341492905,1730922649335,-500.0,0.00027671,2]
[341492906,1730922649344,-500.0,0.00027671,2]
[341492907,1730922649353,-500.0,0.00027671,2]
[341492908,1730922649363,-500.0,0.00027671,2]
[341492909,1730922649372,-500.0,0.00027671,2]
[341492910,1730922649383,-655.47,0.00027671,2]
[341492911,1730922649395,-440.63409227,0.00027671,2]
[341492912,1730922649404,-500.0,0.00027671,2]
[341492913,1730922649414,-576.36,0.00027671,2]
[341492914,1730922649425,-641.95,0.00027671,2]
[341492915,1730922649436,-500.0,0.00027671,2]
[341492916,1730922649447,-500.0,0.00027671,2]
[341492917,1730922649456,-500.0,0.00027671,2]
[341492918,1730922649467,-978.4,0.00027671,2]
[341492919,1730922649477,-2127.75,0.00027671,2]
[341492920,1730922649486,-500.0,0.00027671,2]
[341492921,1730922649496,-565.93,0.00027671,2]
[341492922,1730922649506,-1670.33,0.00027671,2]
[341492923,1730922649515,-500.0,0.00027671,2]
[341492924,1730922649525,-500.0,0.00027671,2]
[341492925,1730922649534,-500.0,0.00027671,2]
[341492926,1730922649545,-665.68,0.00027671,2]
[341492927,1730922649555,-500.0,0.00027671,2]
[341492928,1730922649564,-500.0,0.00027671,2]
[341492929,1730922649574,-500.0,0.00027671,2]
[341492930,1730922649583,-500.0,0.00027671,2]
[341492931,1730922649593,-632.95651695,0.00027671,2]
[341492932,1730922649602,-500.0,0.00027671,2]
[341492933,1730922649612,-1219.79,0.00027671,2]
[341492934,1730922649622,-500.0,0.00027671,2]
[341492935,1730922649631,-500.0,0.00027671,2]
[341492936,1730922649641,-500.0,0.00027671,2]
[341492937,1730922649651,-500.0,0.00027671,2]
[341492938,1730922649661,-500.0,0.00027671,2]
[341492939,1730922649670,-500.0,0.00027671,2]
[341492940,1730922649680,-1209.34,0.00027671,2]
[341492941,1730922649690,-1277.02,0.00027671,2]
[341492942,1730922649701,-500.0,0.00027671,2]
[341492943,1730922649711,-500.0,0.00027671,2]
[341492944,1730922649720,-538.64,0.00027671,2]
[341492945,1730922649729,-500.0,0.00027671,2]
[341492946,1730922649739,-500.0,0.00027671,2]
[341492947,1730922649748,-1000.12,0.00027671,2]
[341492948,1730922649758,-544.89273013,0.00027671,2]
[341492949,1730922649768,-500.0,0.00027671,2]
[341492950,1730922649777,-500.0,0.00027671,2]
[341492951,1730922649787,-500.0,0.00027671,2]
[341492952,1730922649796,-1000.0,0.00027671,10]
[341492953,1730922649806,-802.32,0.00027671,2]
[341492954,1730922649816,-500.0,0.00027671,2]
[341492955,1730922649826,-1976.19,0.00027671,2]
[341492956,1730922649835,-500.0,0.00027671,2]
[341492957,1730922649844,-500.0,0.00027671,2]
[341492958,1730922649853,-500.0,0.00027671,2]
[341492959,1730922649863,-569.46,0.00027671,2]
[341492960,1730922649873,-280.43030544,0.00027671,2]
[341492961,1730922649883,-500.0,0.00027671,2]
[341492962,1730922649893,-500.0,0.00027671,2]
[341492963,1730922649902,-241.65746511,0.00027671,2]
[341492964,1730922649912,-500.0,0.00027671,2]
[341492965,1730922649922,-894.15,0.00027671,2]
[341492966,1730922649931,-500.0,0.00027673,2]
[341492967,1730922649941,-151.50124652,0.00027673,5]
[341492968,1730922649952,-500.0,0.00027673,5]
[341492969,1730922649962,-500.59707081,0.00027673,5]
[341492970,1730922649971,-500.0,0.00027673,5]
[341492971,1730922649981,-500.2241008,0.00027673,5]
[341492972,1730922649990,-800.0,0.000277,10]
[341492973,1730922650000,-1600.0,0.000278,10]
[341492974,1730922650009,-400.79548456,0.00027807,2]
[341492975,1730922650019,-481.80187169,0.00027845,2]
[341492976,1730922650028,-171.8856819,0.00027845,2]
[341492977,1730922650037,-469.28565184,0.00027845,2]
[341492978,1730922650048,-11296.61990667,0.00027881,2]
[341492979,1730922650057,-2400.0,0.000279,10]
[341492980,1730922650067,-5011.49326861,0.00027944,2]
[341492981,1730922650078,-500.0,0.00027945,2]
[341492982,1730922650089,-500.0,0.00027945,2]
[341492983,1730922650099,-500.0,0.00027945,2]
[341492984,1730922650109,-500.0,0.00027945,2]
[341492985,1730922650118,-500.0,0.00027945,2]
[341492986,1730922650129,-500.0,0.00027945,2]
[341492987,1730922650139,-500.0,0.00027945,2]
[341492988,1730922650148,-500.0,0.00027945,2]
[341492989,1730922650159,-500.0,0.00027945,2]
[341492990,1730922650170,-389.65820702,0.00027945,2]
[341492991,1730922650179,-500.0,0.00027945,2]
[341492992,1730922650189,-500.0,0.00027945,2]
[341492993,1730922650200,-500.0,0.00027945,2]
[341492994,1730922650210,-500.0,0.00027945,2]
[341492995,1730922650219,-500.0,0.00027945,2]
[341492996,1730922650228,-513.7105991,0.00027945,2]
[341492997,1730922650238,-500.0,0.00027945,2]
[341492998,1730922650248,-500.0,0.00027945,2]
[341492999,1730922650258,-500.0,0.00027945,2]
[341493000,1730922650267,-747.29,0.00027945,2]
[341493001,1730922650277,-500.0,0.00027945,2]
[341493002,1730922650286,-500.0,0.00027945,2]
[341493003,1730922650295,-500.0,0.00027945,2]
[341493004,1730922650305,-500.0,0.00027945,2]
[341493005,1730922650314,-500.0,0.00027945,2]
[341493006,1730922650324,-500.0,0.00027945,2]
[341493007,1730922650334,-500.0,0.00027945,2]
[341493008,1730922650343,-500.0,0.00027945,2]
[341493009,1730922650352,-500.0,0.00027945,2]
[341493010,1730922650363,-524.69,0.00027945,2]
[341493011,1730922650375,-150.2672799,0.00027945,2]
[341493012,1730922650388,-500.0,0.00027945,2]
[341493013,1730922650398,-500.0,0.00027945,2]
[341493014,1730922650409,-500.0,0.00027945,2]
[341493015,1730922650420,-170.76958284,0.00027945,2]
[341493016,1730922650430,-500.0,0.00027945,2]
[341493017,1730922650440,-1051.01,0.00027945,2]
[341493018,1730922650451,-500.0,0.00027945,2]
[341493019,1730922650461,-500.0,0.00027945,2]